bitfinex/quotes_ETHUSD_20240821
["timestamp","ask_amount","ask_price","bid_price","bid_amount"]
[1724242084209,3.87455,2581.0,2580.7,7.42]
[1724242084401,7.74916,2581.0,2580.7,7.42]
[1724242084606,3.87461,2580.9,2580.8,0.19492392]
[1724242084856,6.17221,2580.9,2580.8,0.19492392]
[1724242085062,11.051496,2580.9,2580.8,0.19492392]
[1724242085274,11.051496,2580.9,2580.3,3.1819]
[1724242085275,3.87514,2580.6,2580.3,3.1819]
[1724242085402,7.75029,2580.6,2580.3,3.1819]
[1724242085610,7.75029,2580.6,2580.4,0.1951488]
[1724242085817,3.87514,2580.6,2580.3,3.1819]
[1724242086022,7.75032,2580.6,2580.3,0.7]
[1724242086223,4.62946567,2580.5,2580.1,2.402]
[1724242086532,3.8756,2580.3,2580.1,2.402]
[1724242087122,3.8756,2580.3,2579.9,3.1098]
[1724242088174,3.87536,2580.4,2579.9,3.1098]
[1724242088570,3.87529,2580.5,2579.9,3.1098]
[1724242088776,3.87507,2580.6,2580.0,0.55]
[1724242089004,3.87523,2580.5,2580.0,0.91598]
[1724242090446,7.75007,2580.7,2580.0,0.91598]
[1724242090587,3.87502,2580.7,2580.2,0.7]
[1724242090921,3.87507,2580.6,2580.2,0.7]
[1724242091828,3.875,2580.7,2580.2,0.7]
[1724242091974,3.875,2580.7,2580.3,0.19532456]
[1724242092169,3.87508,2580.6,2580.3,0.19532456]
[1724242092374,3.87508,2580.6,2580.2,0.7]
[1724242092773,3.87508,2580.6,2580.3,0.19532456]
[1724242092975,3.87508,2580.6,2580.2,0.7]
[1724242093175,3.87508,2580.6,2580.3,2.3462]
[1724242093825,3.87508,2580.6,2580.2,0.7]
[1724242094019,3.87508,2580.6,2580.4,0.19526833]
[1724242094207,3.87508,2580.6,2580.2,0.7]
[1724242094428,3.87508,2580.6,2580.5,0.1952121]
[1724242095022,7.75023,2580.6,2580.2,0.7]
[1724242095218,3.87523,2580.5,2580.2,0.7]
[1724242095452,3.87523,2580.5,2580.3,0.19532456]
[1724242095822,3.87523,2580.5,2580.2,0.7]
[1724242096303,3.87523,2580.5,2580.3,0.19532456]
[1724242096744,3.87523,2580.5,2580.2,0.7]
[1724242097251,3.87523,2580.5,2580.3,0.19532456]
[1724242097726,3.87523,2580.5,2580.2,0.7]
[1724242098126,3.87523,2580.5,2580.3,0.19532456]
[1724242098527,3.87523,2580.5,2580.2,0.7]
[1724242099053,3.87523,2580.5,2580.3,0.19527806]
[1724242099398,3.87523,2580.5,2580.0,0.55]
[1724242099399,3.87536,2580.4,2580.0,0.55]
[1724242099598,6.18563,2580.5,2580.0,0.55]
[1724242099599,3.87553,2580.3,2580.0,0.55]
[1724242099801,7.75118,2580.3,2579.9,3.0882]
[1724242100101,7.75113,2580.3,2579.9,3.0882]
[1724242100522,3.87553,2580.3,2579.9,3.0882]
[1724242101451,3.87553,2580.3,2579.9,3.39702]
[1724242101758,3.87537,2580.4,2579.9,3.39702]
[1724242101954,3.87537,2580.4,2579.9,3.0882]
[1724242102340,3.875,2580.7,2580.2,0.7]
[1724242102548,3.87499,2580.7,2580.3,2.2831]
[1724242102707,7.75004,2580.7,2580.3,2.2831]
[1724242103688,7.74999,2580.7,2580.3,2.2831]
[1724242104031,3.87508,2580.6,2580.3,2.2831]
[1724242105689,3.87488,2580.8,2580.3,2.2831]
[1724242105854,6.87493,2580.7,2580.3,2.58141]
[1724242106381,3.0,2580.7,2580.3,2.58141]
[1724242106567,3.8747,2580.9,2580.5,2.2511]
[1724242106947,3.8747,2580.9,2580.6,0.1955941]
[1724242107943,7.74943,2580.9,2580.6,0.1955941]
[1724242108143,3.8747,2580.9,2580.6,0.1955941]
[1724242110065,4.4820149,2581.0,2580.6,0.1955941]
[1724242110281,0.6075449,2581.0,2580.9,2.2773]
[1724242110505,3.87411,2581.3,2580.9,2.2773]
[1724242110506,7.74821,2581.3,2580.9,2.2773]
[1724242110814,3.8741,2581.3,2580.9,2.47231372]
[1724242111419,3.87417,2581.2,2580.9,2.47231372]
[1724242111716,3.87433,2581.1,2580.9,0.19501372]
[1724242112070,3.8741,2581.3,2581.0,2.3746]
[1724242112469,3.8741,2581.3,2581.1,0.19468221]
[1724242113271,7.74822,2581.3,2581.1,0.19468221]
[1724242113793,3.8741,2581.3,2581.1,0.19468221]
[1724242114649,3.87352,2581.7,2581.1,1.15161043]
[1724242114921,3.87352,2581.7,2581.2,2.9793]
[1724242114922,3.87349,2581.7,2581.2,2.9793]
[1724242115423,3.87349,2581.7,2581.3,0.19448353]
[1724242115770,3.87349,2581.7,2581.2,2.9793]
[1724242116022,7.74701,2581.7,2581.3,0.19448353]
[1724242116369,3.87358,2581.6,2581.2,3.34723]
[1724242116574,3.87358,2581.6,2581.4,0.19442734]
[1724242116879,3.87358,2581.6,2581.3,0.19448353]
[1724242117102,3.87358,2581.6,2581.5,0.19437116]
[1724242117302,3.87358,2581.6,2581.4,0.19442734]
[1724242117515,3.87358,2581.6,2581.5,0.19437116]
[1724242117826,3.87358,2581.6,2581.2,2.9793]
[1724242118044,3.87358,2581.6,2581.5,0.19437116]
[1724242118252,3.87389,2581.4,2581.0,2.2574]
[1724242118403,3.87418,2581.2,2581.0,2.2574]
[1724242118584,3.87402,2581.3,2581.0,2.2574]
[1724242119746,3.87344,2581.7,2581.2,2.2929]
[1724242119922,3.87344,2581.7,2581.3,0.84929]
[1724242120232,3.87362,2581.6,2581.3,0.55]
[1724242122144,3.87362,2581.6,2581.4,0.19434769]
[1724242122307,7.74742,2581.5,2581.4,0.19434769]
[1724242122842,3.87392,2581.4,2581.1,0.7]
[1724242123058,3.87371,2581.5,2581.1,0.7]
[1724242123228,3.87371,2581.5,2581.2,0.19406177]
[1724242123839,7.74752,2581.5,2581.2,0.19406177]
[1724242124043,3.87371,2581.5,2581.2,0.19406177]
[1724242125788,7.74754,2581.5,2581.2,0.19406177]
[1724242126595,8.522294,2581.5,2581.2,0.19406177]
[1724242126891,3.87388,2581.4,2581.2,0.19406177]
[1724242130731,3.87401,2581.3,2581.2,0.19406177]
[1724242131113,3.87423,2581.2,2580.7,9.8072]
[1724242131596,3.87403,2581.3,2580.8,2.3803]
[1724242131797,3.87403,2581.3,2580.9,2.3022]
[1724242132013,3.8738,2581.5,2580.9,2.3022]
[1724242132192,3.8738,2581.5,2581.0,2.8522]
[1724242135335,7.74761,2581.5,2581.0,2.8522]
[1724242135644,3.8738,2581.5,2581.0,2.8522]
[1724242136783,3.8738,2581.5,2581.1,0.19420425]
[1724242137100,4.817333,2581.5,2581.1,0.19420425]
[1724242137300,3.87394,2581.4,2581.1,0.19420425]
[1724242137632,6.505333,2581.5,2581.1,0.19420425]
[1724242138491,3.8738,2581.5,2581.1,0.19420425]
[1724242139420,3.87352,2581.7,2581.3,2.4255]
[1724242139587,5.56152,2581.7,2581.3,2.4255]
[1724242139787,5.56152,2581.7,2581.4,0.19405558]
[1724242139988,5.56152,2581.7,2581.3,2.4255]
[1724242140238,6.345612,2581.7,2581.4,0.19405558]
[1724242140617,6.345612,2581.7,2581.3,2.4255]
[1724242140853,3.87356,2581.6,2581.3,2.4255]
[1724242141056,3.87356,2581.6,2581.4,0.19405558]
[1724242141421,5.56171,2581.5,2581.4,0.19405558]
[1724242141758,3.87387,2581.4,2581.0,2.9747]
[1724242142051,3.87387,2581.4,2581.1,0.19417106]
[1724242150861,3.87374,2581.5,2581.1,0.19417106]
[1724242155916,3.87353,2581.7,2581.1,0.19417106]
[1724242155917,3.87357,2581.6,2581.1,0.19417106]
[1724242156369,3.87353,2581.7,2581.3,0.7]
[1724242156522,3.87353,2581.7,2581.3,3.0557]
[1724242156873,3.87353,2581.7,2581.4,0.19398257]
[1724242157109,7.74704,2581.7,2581.4,0.19398257]
[1724242157387,3.87359,2581.6,2581.3,3.0557]
[1724242157554,3.87359,2581.6,2581.4,0.19398257]
[1724242159761,3.87371,2581.5,2581.4,0.19398257]
[1724242160395,3.87371,2581.5,2581.3,0.78450793]
[1724242160555,3.87371,2581.5,2581.4,0.19398257]
[1724242172399,3.521809,2581.5,2581.4,0.19398257]
[1724242176144,4.48058525,2581.9,2581.5,2.2631]
[1724242176324,3.0,2581.8,2581.6,0.55]
[1724242176505,6.87328,2581.8,2581.6,0.74373083]
[1724242177306,3.87328,2581.8,2581.6,0.74373083]
[1724242180681,3.87288,2582.1,2581.7,2.2597]
[1724242180993,0.60735008,2582.2,2581.8,0.55]
[1724242180994,3.87268,2582.2,2581.8,0.55]
[1724242181131,3.87268,2582.2,2581.8,0.74353221]
[1724242181330,3.87268,2582.2,2581.8,1.31272374]
[1724242183283,3.87268,2582.2,2581.9,0.7]
[1724242183433,3.87268,2582.2,2582.0,2.4063]
[1724242183636,3.87268,2582.2,2582.0,2.59970661]
[1724242184295,3.8726,2582.3,2582.0,2.59970661]
[1724242184436,7.7452,2582.3,2582.0,2.59970661]
[1724242185343,3.8726,2582.3,2582.1,0.55]
[1724242185918,3.8726,2582.3,2582.2,0.19298247]
[1724242189355,4.47916046,2582.7,2582.3,2.2942]
[1724242189356,0.60724046,2582.7,2582.3,2.2942]
[1724242189558,3.87184,2582.8,2582.4,1.66751825]
[1724242189559,3.87183,2582.8,2582.4,1.66751825]
[1724242189889,3.87183,2582.8,2582.4,1.85987093]
[1724242189890,3.87179,2582.8,2582.4,1.85987093]
[1724242191642,7.74364,2582.8,2582.4,1.85987093]
[1724242191838,3.87221,2582.5,2582.4,0.19235268]
[1724242192097,3.87221,2582.5,2582.1,2.9661]
[1724242192239,3.87221,2582.5,2582.4,0.19208738]
[1724242192443,3.87221,2582.5,2582.2,0.55]
[1724242192770,3.87221,2582.5,2582.4,0.19208738]
[1724242192974,3.87236,2582.4,2582.3,0.19214352]
[1724242193171,3.87236,2582.4,2582.2,0.55]
[1724242193172,5.56023,2582.5,2582.2,0.55]
[1724242193355,3.87223,2582.5,2582.2,0.55]
[1724242194867,3.87206,2582.6,2582.2,0.55]
[1724242196468,3.87176,2582.9,2582.4,0.7]
[1724242196670,3.87176,2582.9,2582.5,0.85202]
[1724242196871,3.87176,2582.9,2582.5,0.74214398]
[1724242197518,5.55976,2582.8,2582.5,0.74214398]
[1724242198801,3.87176,2582.8,2582.5,0.74214398]
[1724242201206,7.94996,2582.6,2582.5,0.19214398]
[1724242201401,16.489076,2582.6,2582.5,0.19214398]
[1724242201605,16.489076,2582.6,2581.8,0.7]
[1724242201606,3.87282,2582.1,2581.8,0.7]
[1724242201801,1.688,2582.2,2581.8,0.7]
[1724242202021,3.87281,2582.1,2581.9,0.18558053]
[1724242202219,3.0,2582.5,2581.9,0.50519858]
[1724242202220,1.688,2582.3,2581.9,0.50519858]
[1724242202428,5.5606,2582.3,2581.9,0.18558053]
[1724242202630,3.87268,2582.2,2581.9,0.18558053]
[1724242203393,1.688,2582.3,2581.9,0.18558053]
[1724242203394,3.87252,2582.3,2582.0,2.8539]
[1724242203596,3.87252,2582.3,2582.1,0.18564725]
[1724242204315,3.0,2582.5,2582.1,0.18564725]
[1724242204493,3.87239,2582.4,2582.1,0.48960197]
[1724242204866,5.56018,2582.6,2582.1,0.48960197]
[1724242204867,3.87218,2582.6,2582.2,0.55]
[1724242205024,3.87223,2582.5,2582.2,0.7357967]
[1724242205219,3.87223,2582.5,2582.2,1.14016184]
[1724242206218,7.74452,2582.5,2582.2,1.14016184]
[1724242206449,3.87223,2582.5,2582.2,1.14016184]
[1724242206649,3.87223,2582.5,2582.3,2.3457]
[1724242206962,3.87223,2582.5,2582.3,2.98031609]
[1724242208348,3.87236,2582.4,2582.3,2.53133443]
[1724242209023,3.87236,2582.4,2582.3,0.18563443]
[1724242209024,9.43272,2582.4,2582.3,0.18563443]
[1724242209228,9.43272,2582.4,2582.1,0.7]
[1724242209229,7.74532,2582.2,2582.1,0.7]
[1724242209467,9.43332,2582.2,2582.1,0.88569367]
[1724242210747,9.43332,2582.2,2582.1,0.18569367]
[1724242210964,3.87308,2582.0,2581.6,3.0416]
[1724242211171,3.87308,2582.0,2581.7,1.04316]
[1724242211977,3.87319,2581.9,2581.8,0.18592848]
[1724242212270,3.87355,2581.7,2581.5,7.39]
[1724242212776,1.688,2581.8,2581.5,7.39]
[1724242212777,3.87327,2581.8,2581.5,7.39]
[1724242212989,3.87327,2581.8,2581.5,9.44145079]
[1724242213541,3.87307,2582.0,2581.5,11.85295079]
[1724242213734,3.87305,2582.0,2581.6,0.7]
[1724242213940,3.87305,2582.0,2581.7,0.55]
[1724242214648,3.87277,2582.2,2581.7,0.55]
[1724242214866,3.87276,2582.2,2581.8,2.3411]
[1724242215766,7.7455,2582.2,2581.8,2.3411]
[1724242215950,3.87246,2582.4,2581.9,1.25]
[1724242216282,3.0,2582.3,2581.9,1.25]
[1724242216833,3.0,2582.3,2582.0,2.2683]
[1724242217075,3.0,2582.3,2582.1,0.55]
[1724242217450,6.87255,2582.3,2582.1,0.55]
[1724242217790,3.87288,2582.1,2581.9,0.7]
[1724242219655,3.87296,2582.0,2581.9,0.7]
[1724242219893,3.87296,2582.0,2581.9,1.25]
[1724242220414,3.87281,2582.1,2581.9,1.25]
[1724242221272,7.74543,2582.2,2581.9,1.25]
[1724242222088,3.87284,2582.1,2581.9,1.25]
[1724242223030,3.87296,2582.0,2581.9,1.25]
[1724242223328,3.87296,2582.0,2581.9,0.55]
[1724242223695,3.87296,2582.0,2581.7,0.55]
[1724242223888,3.87296,2582.0,2581.7,1.66129]
[1724242226328,2.2647,2582.2,2581.6,0.7]
[1724242226681,3.8732,2581.9,2581.6,0.7]
[1724242227213,3.8732,2581.9,2581.7,0.18659484]
[1724242228620,3.87326,2581.8,2581.7,0.18659484]
[1724242229829,3.87326,2581.8,2581.3,8.17450793]
[1724242229830,3.87344,2581.7,2581.3,0.78450793]
[1724242229980,2.2688,2581.8,2581.3,0.78450793]
[1724242229981,3.87373,2581.5,2581.3,0.78450793]
[1724242231235,3.87373,2581.5,2581.3,0.08450793]
[1724242234404,3.87386,2581.4,2581.3,0.08450793]
[1724242234628,10.06592,2581.4,2581.3,0.08450793]
[1724242235207,11.072512,2581.4,2581.3,0.08450793]
[1724242237535,7.74772,2581.4,2581.3,0.08450793]
[1724242238714,3.87386,2581.4,2581.3,0.08450793]
[1724242244063,3.87386,2581.4,2581.3,0.31952124]
[1724242244216,3.87386,2581.4,2581.3,0.08450793]
[1724242244421,3.87386,2581.4,2581.3,0.31952124]
[1724242244624,3.87386,2581.4,2581.3,0.08450793]
[1724242244823,3.87386,2581.4,2581.3,0.31952124]
[1724242245035,3.87386,2581.4,2581.3,0.08450793]
[1724242245236,3.87386,2581.4,2581.3,0.31952124]
[1724242245489,3.87386,2581.4,2581.3,0.08450793]
[1724242245686,3.87386,2581.4,2581.3,0.31952124]
[1724242245885,10.817483,2581.4,2581.3,0.08450793]
[1724242246092,10.04272,2581.4,2581.3,0.31952124]
[1724242246297,10.04272,2581.4,2581.3,0.08450793]
[1724242246441,11.73072,2581.4,2581.3,0.08450793]
[1724242246873,15.60458,2581.4,2581.3,0.08450793]
[1724242247057,17.165038,2581.4,2581.3,0.08450793]
[1724242248602,15.477038,2581.4,2581.3,0.08450793]
[1724242249188,15.477038,2581.4,2581.3,0.3194615]
[1724242253574,18.477038,2581.4,2581.3,0.3194615]
[1724242257533,26.403898,2581.4,2581.3,0.3194615]
[1724242257731,26.403898,2581.4,2581.3,0.08450793]
[1724242259004,26.403898,2581.4,2581.3,7.93e-06]
[1724242260925,30.277758,2581.4,2581.3,7.93e-06]
[1724242265227,26.403898,2581.4,2581.3,7.93e-06]
[1724242268971,13.182038,2581.4,2581.3,7.93e-06]
[1724242270405,16.182038,2581.4,2581.3,7.93e-06]
[1724242270561,17.871038,2581.4,2581.3,7.93e-06]
[1724242273351,24.004498,2581.4,2581.3,7.93e-06]
[1724242276694,24.004498,2581.4,2581.3,0.23572503]
[1724242276998,24.004498,2581.4,2581.3,0.23575159]
[1724242277325,17.871038,2581.4,2581.3,0.23575159]
[1724242277595,16.31058,2581.4,2581.3,0.23575159]
[1724242277946,12.43672,2581.4,2581.3,0.23575159]
[1724242278500,12.43672,2581.4,2581.3,2.57415159]
[1724242278501,7.74772,2581.4,2581.3,2.57415159]
[1724242278699,7.74772,2581.4,2581.3,2.33840793]
[1724242280001,3.87386,2581.4,2581.3,2.33840793]
[1724242280699,7.74772,2581.4,2581.3,2.33840793]
[1724242283702,3.87386,2581.4,2581.3,2.33840793]
[1724242284202,7.74772,2581.4,2581.3,2.33840793]
[1724242284405,3.87386,2581.4,2581.3,2.33840793]
[1724242285260,7.74772,2581.4,2581.3,2.33840793]
[1724242285706,7.74772,2581.4,2581.3,7.93e-06]
[1724242292090,3.87386,2581.4,2581.3,7.93e-06]
[1724242292721,3.87386,2581.4,2581.3,2.47840793]
[1724242293291,3.87384,2581.5,2581.3,2.47840793]
[1724242293461,3.87381,2581.5,2581.3,2.47840793]
[1724242293659,3.87379,2581.5,2581.3,2.47840793]
[1724242293859,7.74758,2581.5,2581.3,2.47840793]
[1724242294285,3.87379,2581.5,2581.3,2.47840793]
[1724242294506,7.74763,2581.5,2581.3,2.47840793]
[1724242294910,3.87386,2581.4,2581.3,2.47840793]
[1724242295781,3.87372,2581.5,2581.3,2.47840793]
[1724242295981,3.87372,2581.5,2581.3,2.72624872]
[1724242297618,3.87372,2581.5,2581.3,2.47840793]
[1724242298102,3.8735,2581.7,2581.3,3.17840793]
[1724242298299,3.8735,2581.7,2581.4,2.3668]
[1724242300073,7.74701,2581.7,2581.4,2.3668]
[1724242300613,3.8735,2581.7,2581.4,2.3668]
[1724242300818,7.747,2581.7,2581.4,2.3668]
[1724242301124,7.747,2581.7,2581.4,2.67348079]
[1724242301285,3.8735,2581.7,2581.4,2.67348079]
[1724242302124,3.87357,2581.6,2581.4,2.67348079]
[1724242302274,3.87357,2581.6,2581.4,2.3668]
[1724242302833,3.87357,2581.6,2581.5,0.23501013]
[1724242304941,3.87373,2581.5,2581.3,0.70000793]
[1724242306538,3.87373,2581.5,2581.4,0.55]
[1724242314994,3.87373,2581.5,2581.3,7.93e-06]
[1724242314995,7.74772,2581.4,2581.3,7.93e-06]
[1724242315302,8.52245,2581.4,2581.3,7.93e-06]
[1724242317010,12.39631,2581.4,2581.3,7.93e-06]
[1724242317209,14.80821,2581.4,2581.3,7.93e-06]
[1724242329369,12.39631,2581.4,2581.3,7.93e-06]
[1724242331519,8.52245,2581.4,2581.3,7.93e-06]
[1724242331835,3.87386,2581.4,2581.3,7.93e-06]
[1724242332058,3.87386,2581.4,2581.3,0.55000793]
[1724242333570,3.87372,2581.5,2581.3,0.55000793]
[1724242333954,7.74752,2581.5,2581.3,0.55000793]
[1724242334180,5.56186,2581.4,2581.3,0.55000793]
[1724242338435,9.43572,2581.4,2581.3,7.93e-06]
[1724242338661,10.379278,2581.4,2581.3,7.93e-06]
[1724242339849,9.43572,2581.4,2581.3,7.93e-06]
[1724242342193,3.87386,2581.4,2581.3,2.28370793]
[1724242342486,3.87386,2581.4,2581.3,2.83370793]
[1724242345071,3.87386,2581.4,2581.3,3.06909301]
[1724242346249,3.87386,2581.4,2581.3,2.83370793]
[1724242351093,3.87386,2581.4,2581.3,3.0688341]
[1724242354388,3.87386,2581.4,2581.3,0.7851341]
[1724242354572,8.691277,2581.4,2581.3,7.93e-06]
[1724242354912,11.150277,2581.4,2581.3,7.93e-06]
[1724242355277,8.691277,2581.4,2581.3,7.93e-06]
[1724242356108,4.817417,2581.4,2581.3,7.93e-06]
[1724242356272,8.691277,2581.4,2581.3,7.93e-06]
[1724242358361,7.74772,2581.4,2581.3,7.93e-06]
[1724242360932,3.87386,2581.4,2581.3,7.93e-06]
[1724242364694,7.74772,2581.4,2581.3,7.93e-06]
[1724242364895,3.87386,2581.4,2581.3,7.93e-06]
[1724242365309,7.74772,2581.4,2581.3,7.93e-06]
[1724242365513,8.691292,2581.4,2581.3,7.93e-06]
[1724242368336,4.817432,2581.4,2581.3,7.93e-06]
[1724242368743,8.691292,2581.4,2581.3,7.93e-06]
[1724242369093,11.154892,2581.4,2581.3,7.93e-06]
[1724242369294,15.028752,2581.4,2581.3,7.93e-06]
[1724242369497,18.028752,2581.4,2581.3,7.93e-06]
[1724242369796,21.902612,2581.4,2581.3,7.93e-06]
[1724242370614,25.25556454,2581.4,2581.3,7.93e-06]
[1724242371567,25.25556454,2581.4,2580.0,9.8324]
[1724242371568,3.87565,2580.3,2580.0,9.8324]
[1724242371714,3.87565,2580.3,2580.0,2.4424]
[1724242371715,5.56365,2580.3,2580.0,2.4424]
[1724242371912,5.56365,2580.3,2580.1,0.2359156]
[1724242372161,9.43919,2580.3,2580.1,0.2359156]
[1724242372331,9.43919,2580.3,2580.0,2.4424]
[1724242372533,5.56359,2580.3,2580.0,2.4424]
[1724242372731,5.56359,2580.3,2580.1,0.2359156]
[1724242372947,3.87559,2580.3,2580.2,0.55]
[1724242373260,3.87559,2580.3,2580.2,0.78585753]
[1724242374674,3.87512,2580.6,2580.3,2.3768]
[1724242374968,3.87498,2580.7,2580.4,0.78635242]
[1724242375169,3.87499,2580.7,2580.4,0.78635242]
[1724242375337,3.87484,2580.8,2580.5,2.2581]
[1724242375663,3.87491,2580.7,2580.6,0.78613002]
[1724242375967,3.87484,2580.8,2580.6,0.78613002]
[1724242377664,7.74972,2580.8,2580.6,0.78613002]
[1724242378035,3.87484,2580.8,2580.6,0.78613002]
[1724242378235,3.87464,2580.9,2580.7,2.2783]
[1724242378568,3.87464,2580.9,2580.8,0.78582796]
[1724242380115,3.87457,2581.0,2580.8,0.78582796]
[1724242381784,3.87426,2581.2,2580.8,1.48582796]
[1724242381986,3.87426,2581.2,2580.8,1.90316903]
[1724242382139,3.87441,2581.1,2580.8,1.90316903]
[1724242382849,3.87447,2581.0,2580.8,1.90316903]
[1724242383374,3.87432,2581.1,2580.8,1.90316903]
[1724242383584,7.74852,2581.2,2580.8,1.90316903]
[1724242383875,3.87432,2581.1,2580.9,0.4181469]
[1724242384079,3.87432,2581.1,2581.0,0.55]
[1724242384387,3.87432,2581.1,2581.0,0.78577162]
[1724242384597,1.688,2581.3,2581.1,2.4988]
[1724242384798,3.87419,2581.2,2581.1,2.4988]
[1724242384997,3.87419,2581.2,2581.1,3.0488]
[1724242391476,3.87419,2581.2,2581.1,0.55]
[1724242391676,3.87439,2581.1,2581.0,0.55]
[1724242391872,3.87439,2581.1,2581.0,0.78548611]
[1724242392107,3.87409,2581.3,2581.0,0.78548611]
[1724242392424,3.87393,2581.4,2581.0,0.78548611]
[1724242392425,3.87393,2581.4,2581.0,1.16992472]
[1724242392718,7.74788,2581.4,2581.1,2.3589]
[1724242392906,3.87393,2581.4,2581.2,0.55]
[1724242393121,3.87393,2581.4,2581.3,0.23527885]
[1724242393275,3.87393,2581.4,2581.3,0.78527885]
[1724242393876,3.87373,2581.5,2581.3,0.78527885]
[1724242394124,3.87373,2581.5,2581.4,2.9089]
[1724242394317,3.87357,2581.6,2581.4,2.9089]
[1724242394519,3.87357,2581.6,2581.4,3.1440279]
[1724242395475,3.87371,2581.5,2581.4,3.1440279]
[1724242396498,3.87357,2581.6,2581.4,3.1440279]
[1724242398185,3.87371,2581.5,2581.4,0.7851279]
[1724242400509,8.69919317,2581.5,2581.4,0.2351279]
[1724242400743,3.87431,2581.1,2581.0,7.39]
[1724242401587,7.74862,2581.1,2581.0,7.39]
[1724242401789,9.43662,2581.1,2581.0,7.39]
[1724242402000,7.74862,2581.1,2581.0,7.39]
[1724242402992,7.74862,2581.1,2581.0,7.94]
[1724242404289,7.74862,2581.1,2581.0,0.55]
[1724242404505,3.87448,2581.0,2580.9,0.55]
[1724242407038,3.87448,2581.0,2580.9,0.78558399]
[1724242407737,14.790319,2581.0,2580.9,0.23558399]
[1724242408106,3.87517,2580.6,2580.2,3.0657]
[1724242408349,3.87517,2580.6,2580.3,0.23591898]
[1724242408823,3.87517,2580.6,2580.2,3.0657]
[1724242409023,3.87517,2580.6,2580.4,0.2359738]
[1724242409254,3.87517,2580.6,2580.5,0.55]
[1724242409476,3.87517,2580.6,2580.5,0.23591575]
[1724242409630,3.87517,2580.6,2580.5,0.78591575]
[1724242411181,6.506978,2580.6,2580.5,0.78591575]
[1724242411665,6.506978,2580.6,2580.5,0.55]
[1724242411868,6.506978,2580.6,2580.3,0.55]
[1724242412079,5.56317,2580.6,2580.3,0.55]
[1724242412589,3.87517,2580.6,2580.3,0.55]
[1724242414028,3.87491,2580.7,2580.4,2.3457]
[1724242414029,7.74993,2580.7,2580.4,2.3457]
[1724242414232,7.74993,2580.7,2580.5,0.55]
[1724242414541,3.87506,2580.6,2580.5,0.78595109]
[1724242418445,3.87491,2580.7,2580.5,0.78595109]
[1724242418683,3.87506,2580.6,2580.5,0.78595109]
[1724242421512,4.818857,2580.6,2580.5,0.78595109]
[1724242421807,10.381917,2580.6,2580.5,0.78595109]
[1724242425905,3.87506,2580.6,2580.5,0.78595109]
[1724242427172,7.75012,2580.6,2580.5,0.78595109]
[1724242427807,9.43812,2580.6,2580.5,0.78595109]
[1724242434130,7.75012,2580.6,2580.5,0.78595109]
[1724242440736,3.87492,2580.7,2580.6,2.4317]
[1724242441022,3.87492,2580.7,2580.6,3.2180579]
[1724242441839,7.74997,2580.7,2580.6,3.2180579]
[1724242442627,3.87492,2580.7,2580.6,3.2180579]
[1724242443586,7.74997,2580.7,2580.6,3.2180579]
[1724242443785,7.74997,2580.7,2580.6,0.7863579]
[1724242447086,7.74997,2580.7,2580.6,0.7863579]
[1724242453715,3.87478,2580.8,2580.6,3.2046579]
[1724242453916,3.87478,2580.8,2580.7,0.55]
[1724242454188,5.56224,2581.2,2580.7,0.78616703]
[1724242454189,3.87426,2581.2,2580.7,0.78616703]
[1724242454390,6.87439,2581.1,2580.8,2.4183]
[1724242454698,6.87439,2581.1,2580.9,0.55]
[1724242454699,7.74902,2581.0,2580.9,0.55]
[1724242454920,3.87468,2580.9,2580.7,0.55]
[1724242455128,3.87476,2580.8,2580.7,0.55]
[1724242457233,7.74952,2580.8,2580.7,0.55]
[1724242457402,7.74982,2580.7,2580.6,0.55]
[1724242457618,9.43782,2580.7,2580.6,0.55]
[1724242460011,3.87551,2580.3,2580.2,2.9955]
[1724242461643,3.87551,2580.3,2580.2,3.5455]
[1724242462741,3.87537,2580.4,2580.2,3.5455]
[1724242462949,3.87537,2580.4,2580.3,0.55]
[1724242466719,3.87537,2580.4,2580.1,0.55]
[1724242466915,3.87537,2580.4,2580.3,0.23620661]
[1724242467129,3.87537,2580.4,2580.3,0.55]
[1724242467355,3.87537,2580.4,2580.3,0.78620661]
[1724242470119,9.43858,2580.5,2580.3,0.78620661]
[1724242470323,7.75058,2580.5,2580.4,0.55]
[1724242470761,7.75058,2580.5,2580.4,0.78662679]
[1724242471558,3.87526,2580.5,2580.4,0.78662679]
[1724242472067,3.87514,2580.6,2580.4,0.78662679]
[1724242472412,3.87521,2580.5,2580.4,0.78662679]
[1724242474031,7.75042,2580.5,2580.4,0.78662679]
[1724242474223,10.629992,2580.5,2580.4,0.78662679]
[1724242477866,6.754782,2580.5,2580.4,0.78662679]
[1724242478068,3.87521,2580.5,2580.4,0.78662679]
[1724242482473,11.70902,2580.5,2580.4,0.78662679]
[1724242482683,15.58423,2580.5,2580.4,0.23662679]
[1724242482845,14.70902,2580.5,2580.4,0.23662679]
[1724242483048,3.87559,2580.3,2580.0,0.0008]
[1724242483356,3.87559,2580.3,2580.0,0.5508]
[1724242483614,3.87559,2580.3,2580.1,2.4913]
[1724242483815,3.87559,2580.3,2580.2,0.55]
[1724242490814,3.87568,2580.2,2580.0,0.5508]
[1724242492921,7.75145,2580.2,2580.0,0.5508]
[1724242493069,3.87581,2580.1,2580.0,0.5508]
[1724242496805,3.87581,2580.1,2580.0,0.78783179]
[1724242497388,3.87559,2580.3,2580.0,0.78783179]
[1724242498295,3.87559,2580.3,2580.0,1.18535497]
[1724242498617,3.87559,2580.3,2580.1,2.3041]
[1724242498920,3.87559,2580.3,2580.2,0.55]
[1724242499112,3.87559,2580.3,2580.2,0.78690901]
[1724242500297,7.75119,2580.3,2580.2,0.78690901]
[1724242501212,9.243379,2580.3,2580.2,0.78690901]
[1724242502799,10.931379,2580.3,2580.2,0.78690901]
[1724242504593,10.931379,2580.3,2580.2,0.23690901]